fUST/lending_fUST_20250522
["ID","MTS","AMOUNT","RATE_DAILY","PERIOD"]
[361869885,1747858244524,-430.0,0.00024647,2]
[361869886,1747858244533,-430.0,0.00024647,2]
[361869887,1747858244544,-150.5,0.0002465,120]
[361869888,1747858244554,-207.78131803,0.00024657,2]
[361869889,1747858244564,-211.59453557,0.00024658,2]
[361869890,1747858244573,-500.0,0.00024658,2]
[361869891,1747858244583,-500.0,0.00024658,2]
[361869892,1747858244592,-500.0,0.00024658,2]
[361869893,1747858244602,-500.0,0.00024658,2]
[361869894,1747858244611,-611.90115845,0.00024658,2]
[361869895,1747858244621,-500.0,0.00024658,2]
[361869896,1747858244631,-300.0,0.00024658,2]
[361869897,1747858244640,-45473.751003,0.0002466,7]
[361869898,1747858244649,-45473.751003,0.0002466,7]
[361869899,1747858244659,-151.0,0.0002466,7]
[361869900,1747858244669,-151.0,0.0002466,7]
[361869901,1747858244678,-151.0,0.0002466,7]
[361869902,1747858244688,-191.202874,0.0002466,7]
[361869903,1747858244697,-151.0,0.0002466,7]
[361869904,1747858244706,-3961.00329781,0.0002469,2]
[361869905,1747858244716,-500.0,0.000247,120]
[361869906,1747858244725,-575.15,0.000247,120]
[361869907,1747858244735,-151.0,0.000247,9]
[361869908,1747858244744,-1217.42,0.00024747,2]
[361869909,1747858244754,-430.0,0.00024747,2]
[361869910,1747858244763,-500.0,0.00024748,30]
[361869911,1747858244772,-430.0,0.00024749,2]
[361869912,1747858244781,-146918.31012284,0.0002475,2]
[361869913,1747858244791,-151.0,0.0002475,7]
[361869914,1747858244801,-151.664068,0.0002475,7]
[361869915,1747858244811,-151.0,0.0002475,7]
[361869916,1747858244832,-151.0,0.0002475,7]
[361869917,1747858244843,-154.895152,0.0002475,7]
[361869918,1747858244854,-154.895152,0.0002475,7]
[361869919,1747858244864,-236.118924,0.0002475,7]
[361869920,1747858244874,-151.0,0.0002475,7]
[361869921,1747858244885,-199.70093,0.0002475,7]
[361869922,1747858244895,-151.0,0.0002475,7]
[361869923,1747858244905,-151.0,0.0002475,7]
[361869924,1747858244915,-151.0,0.0002475,7]
[361869925,1747858244926,-233.750677,0.0002475,7]
[361869926,1747858244935,-151.0,0.0002475,7]
[361869927,1747858244945,-151.0,0.0002475,7]
[361869928,1747858244955,-1185.497592,0.0002475,2]
[361869929,1747858244964,-1185.497592,0.0002475,2]
[361869930,1747858244974,-151.0,0.0002475,7]
[361869931,1747858244984,-151.0,0.0002475,7]
[361869932,1747858244994,-151.0,0.0002475,7]
[361869933,1747858245004,-151.0,0.0002475,7]
[361869934,1747858245014,-160.316743,0.0002475,7]
[361869935,1747858245023,-151.0,0.0002475,7]
[361869936,1747858245033,-151.0,0.0002475,7]
[361869937,1747858245045,-151.0,0.0002475,7]
[361869938,1747858245055,-155.741578,0.0002475,7]
[361869939,1747858245064,-151.0,0.0002475,7]
[361869940,1747858245075,-155.741578,0.0002475,7]
[361869941,1747858245088,-151.173006,0.0002475,7]
[361869942,1747858245099,-151.0,0.0002475,7]
[361869943,1747858245108,-151.0,0.0002475,7]
[361869944,1747858245119,-151.0,0.0002475,7]
[361869945,1747858245130,-153.2916,0.0002475,2]
[361869946,1747858245139,-151.0,0.0002475,7]
[361869947,1747858245150,-151.0,0.0002475,7]
[361869948,1747858245161,-151.0,0.0002475,7]
[361869949,1747858245170,-151.0,0.0002475,7]
[361869950,1747858245180,-151.0,0.0002475,7]
[361869951,1747858245190,-151.0,0.0002475,7]
[361869952,1747858245200,-151.0,0.0002475,7]
[361869953,1747858245210,-160.83129,0.0002475,7]
[361869954,1747858245220,-270.211908,0.0002475,7]
[361869955,1747858245229,-151.0,0.0002475,7]
[361869956,1747858245239,-154.22928254,0.00024767,2]
[361869957,1747858245249,-501.23380576,0.00024773,2]
[361869958,1747858245259,-500.0,0.00024773,2]
[361869959,1747858245269,-500.0,0.00024773,2]
[361869960,1747858245279,-12851.23284405,0.00024774,2]
[361869961,1747858245289,-960.0,0.00024796,2]
[361869962,1747858245298,-707.0,0.00024796,2]
[361869963,1747858245309,-151.0,0.000248,5]
[361869964,1747858245318,-151.0,0.000248,9]
[361869965,1747858245328,-156.131678,0.000248,7]
[361869966,1747858245338,-166.30644302,0.000248,2]
[361869967,1747858245347,-1268.64034895,0.000248,2]
[361869968,1747858245358,-163.081142,0.000248,7]
[361869969,1747858245367,-151.0,0.000248,7]
[361869970,1747858245377,-4342.45221084,0.000248,2]
[361869971,1747858245387,-151.0,0.000248,7]
[361869972,1747858245396,-151.0,0.000248,7]
[361869973,1747858245407,-151.0,0.000248,7]
[361869974,1747858245417,-151.0,0.000248,7]
[361869975,1747858245426,-151.0,0.000248,7]
[361869976,1747858245440,-199.506976,0.000248,7]
[361869977,1747858245450,-361.87101757,0.00024863,2]
[361869978,1747858245459,-220.718008,0.00024873,7]
[361869979,1747858245470,-151.0,0.00024873,7]
[361869980,1747858245481,-274.351326,0.00024873,7]
[361869981,1747858245492,-151.0,0.00024873,7]
[361869982,1747858245503,-155.741578,0.00024873,7]
[361869983,1747858245514,-151.0,0.00024873,7]
[361869984,1747858245526,-155.741578,0.00024873,7]
[361869985,1747858245537,-151.0,0.00024873,7]
[361869986,1747858245549,-151.0,0.0002489,7]
[361869987,1747858245559,-151.0,0.0002489,7]
[361869988,1747858245569,-151.0,0.0002489,7]
[361869989,1747858245579,-151.0,0.0002489,7]
[361869990,1747858245590,-230.075229,0.0002489,7]
[361869991,1747858245600,-151.0,0.0002489,7]
[361869992,1747858245611,-151.0,0.0002489,7]
[361869993,1747858245621,-152.235506,0.0002489,7]
[361869994,1747858245630,-500.0,0.0002489,2]
[361869995,1747858245640,-361.87101757,0.0002489,2]
[361869996,1747858245650,-678.38799754,0.000249,15]
[361869997,1747858245659,-151.0,0.000249,7]
[361869998,1747858245670,-151.0,0.000249,7]
[361869999,1747858245680,-151.0,0.000249,7]
[361870000,1747858245689,-198.322409,0.000249,7]
[361870001,1747858245699,-151.0,0.000249,7]
[361870002,1747858245709,-151.0,0.000249,7]
[361870003,1747858245719,-151.0,0.000249,7]
[361870004,1747858245729,-151.0,0.000249,6]
[361870005,1747858245738,-151.0,0.000249,7]
[361870006,1747858245748,-151.0,0.000249,7]
[361870007,1747858245758,-180.740931,0.000249,7]
[361870008,1747858245767,-1185.497592,0.000249,2]
[361870009,1747858245777,-1185.497592,0.000249,2]
[361870010,1747858245787,-151.0,0.000249,7]
[361870011,1747858245800,-151.0,0.000249,7]
[361870012,1747858245810,-151.0,0.000249,7]
[361870013,1747858245820,-155.741578,0.000249,7]
[361870014,1747858245830,-151.0,0.000249,7]
[361870015,1747858245839,-155.741578,0.000249,7]
[361870016,1747858245849,-151.0,0.000249,7]
[361870017,1747858245859,-151.0,0.000249,7]
[361870018,1747858245869,-495331.102196,0.000249,2]
[361870019,1747858245879,-195.209824,0.000249,7]
[361870020,1747858245889,-151.0,0.000249,7]
[361870021,1747858245899,-151.0,0.000249,7]
[361870022,1747858245910,-151.0,0.000249,7]
[361870024,1747858245920,-151.0,0.000249,7]
[361870025,1747858245930,-152.506462,0.000249,7]
[361870026,1747858245940,-430.0,0.00024921,2]
[361870027,1747858245950,-430.0,0.00024921,2]
[361870028,1747858245960,-151.0,0.0002495,7]
[361870029,1747858245969,-151.0,0.0002495,7]
[361870030,1747858245979,-151.0,0.0002495,7]
[361870031,1747858245989,-154.895152,0.0002495,7]
[361870032,1747858245999,-154.895152,0.0002495,7]
[361870033,1747858246009,-151.0,0.0002495,7]
[361870034,1747858246019,-151.0,0.0002495,7]
[361870035,1747858246029,-151.0,0.0002495,7]
[361870036,1747858246039,-361.87101757,0.0002495,2]
[361870037,1747858246050,-1937.0,0.0002496,120]
[361870038,1747858246062,-1937.0,0.0002497,120]
[361870040,1747858246072,-1937.0,0.0002497,120]
[361870041,1747858246084,-1937.0,0.0002498,120]
[361870042,1747858246094,-1937.0,0.0002498,120]
[361870043,1747858246104,-361.87101757,0.0002498,2]
[361870044,1747858246113,-1447.48407028,0.0002499,2]
[361870045,1747858246124,-19165.90505702,0.00025,2]
[361870048,1747858246134,-370.25615013,0.00025,20]
[361870049,1747858246144,-2017.63038572,0.00025,14]
[361870051,1747858246155,-100000.0,0.00025,30]
[361870053,1747858246165,-13715.82726501,0.00025,2]
[361870055,1747858246175,-1059.46298587,0.00025,2]
[361870056,1747858246185,-217.51768491,0.00025,120]
[361870057,1747858246195,-98463.24770996,0.00025,15]
[361870059,1747858246204,-2609.06383837,0.00025,2]
[361870060,1747858246214,-206.96796088,0.00025,2]
[361870062,1747858246224,-10364.0,0.00025,2]
[361870064,1747858246234,-89808.91518271,0.00025,30]
[361870066,1747858246243,-520.9844846,0.00025,120]
[361870068,1747858246253,-1001.59542428,0.00025,14]
[361870070,1747858246263,-500.0,0.00025,2]
[361870072,1747858246273,-1152.88918849,0.00025,120]
[361870073,1747858246283,-150.0,0.00025,3]
[361870075,1747858246293,-499.79458827,0.00025,120]
[361870077,1747858246304,-160.57354554,0.00025,7]
[361870079,1747858246315,-676.71192505,0.00025,2]
[361870081,1747858246325,-120000.0,0.00025,2]
[361870083,1747858246335,-508444.81507037,0.00025,20]
[361870086,1747858246353,-2170.2,0.00025,20]
[361870104,1747858246520,-430.0,0.00023003,2]
[361870106,1747858246531,-113.2,0.00023416,2]
[361870489,1747858254924,401.78527147,0.00022313,2]
[361870490,1747858256836,111.7431662,0.00022313,2]
[361870491,1747858395926,160.347474,0.00013699,2]
[361870502,1747859134133,-1813.30794429,0.0001781,2]
[361870513,1747859234108,-930.26982041,0.00017632,2]
[361870523,1747859345145,-666.66598735,0.0001573,2]
[361870524,1747859345171,-4069.73017959,0.00017632,2]
[361870525,1747859345195,-318.42529264,0.00018356,2]
[361870526,1747859345217,-150.0,0.000189,2]
[361870527,1747859345239,-300.0,0.00019379,2]
[361870528,1747859345259,-300.0,0.0001938,2]
[361870529,1747859345285,-325.325099,0.00019957,2]
[361870530,1747859345307,-151.76621181,0.0002,7]
[361870531,1747859345334,-2102.77781452,0.000209,4]
[361870532,1747859345357,-300.0,0.00021071,2]
[361870533,1747859345381,-2102.7778143,0.00021072,4]
[361870534,1747859345408,-2102.7778143,0.00021245,4]
[361870535,1747859345431,-160.347474,0.00021404,2]
[361870536,1747859345456,-2102.7778143,0.00021417,5]
[361870537,1747859345481,-2102.7778143,0.0002159,5]
[361870538,1747859345504,-152.0,0.00021683,2]
[361870539,1747859345529,-2102.7778143,0.00021762,5]
[361870540,1747859345551,-500.0,0.00021864,2]
[361870541,1747859345574,-1200.0,0.00021878,2]
[361870542,1747859345595,-212.41679935,0.00021879,2]
[361870543,1747859345616,-500.0,0.00021917,2]
[361870544,1747859345637,-430.0,0.00021917,2]
[361870545,1747859345658,-272.47901835,0.00021917,2]
[361870546,1747859345681,-430.0,0.00021917,2]
[361870547,1747859345702,-430.0,0.00021917,2]
[361870548,1747859345725,-119.79337989,0.00021917,2]
[361870549,1747859348142,-5000.0,0.00015573,2]
[361870550,1747859348164,-310.20662011,0.00021917,2]
[361870551,1747859348187,-430.0,0.00021917,2]
[361870552,1747859348210,-430.0,0.00021917,2]
[361870553,1747859348231,-430.0,0.00021917,2]
[361870554,1747859348254,-430.0,0.00021917,2]
[361870555,1747859348276,-430.0,0.00021917,2]
[361870556,1747859348299,-553.96,0.00021917,2]
[361870557,1747859348321,-430.0,0.00021917,2]
[361870558,1747859348343,-430.0,0.00021917,2]
[361870559,1747859348366,-400.0,0.00021917,2]
[361870560,1747859348387,-430.0,0.00021917,2]
[361870561,1747859348408,-430.0,0.00021917,2]
[361870562,1747859348431,-430.0,0.00021917,2]
[361870563,1747859348459,-539.39,0.00021917,2]
[361870564,1747859348484,-430.0,0.00021917,2]
[361870565,1747859348507,-430.0,0.00021917,2]
[361870566,1747859348530,-400.85864954,0.00021917,2]
[361870567,1747859348553,-430.0,0.00021917,2]
[361870568,1747859348575,-430.0,0.00021917,2]
[361870569,1747859348597,-430.0,0.00021917,2]
[361870570,1747859348620,-567.11,0.00021917,2]
[361870571,1747859348642,-430.0,0.00021917,2]
[361870572,1747859348663,-400.0,0.00021917,2]
[361870573,1747859348685,-536.01,0.00021917,2]
[361870574,1747859348708,-430.0,0.00021917,2]
[361870575,1747859348731,-430.0,0.00021917,2]
[361870576,1747859348753,-430.0,0.00021917,2]
[361870577,1747859348775,-430.0,0.00021917,2]
[361870578,1747859348796,-430.0,0.00021917,2]
[361870579,1747859348818,-430.0,0.00021917,2]
[361870580,1747859348840,-430.0,0.00021917,2]
[361870581,1747859348863,-430.0,0.00021917,2]
[361870582,1747859348885,-430.0,0.00021917,2]
[361870583,1747859348906,-350.34277277,0.00021917,2]
[361870584,1747859348929,-430.0,0.00021917,2]
[361870585,1747859348951,-400.0,0.00021917,2]
[361870586,1747859348971,-561.89,0.00021917,2]
[361870587,1747859348993,-430.0,0.00021917,2]
[361870588,1747859349214,-430.0,0.00021917,2]
[361870589,1747859349237,-430.0,0.00021917,2]
[361870590,1747859349260,-430.0,0.00021917,2]
[361870591,1747859349286,-2102.7778143,0.00021934,6]
[361870592,1747859349307,-500.0,0.00021999,2]
[361870593,1747859349331,-500.0,0.00021999,2]
[361870594,1747859349353,-500.0,0.00021999,2]
[361870595,1747859349376,-500.0,0.00021999,2]
[361870596,1747859349398,-500.0,0.00021999,2]
[361870597,1747859349422,-500.0,0.00021999,2]
[361870598,1747859349444,-500.0,0.00021999,2]
[361870599,1747859349468,-617.87737193,0.00021999,2]
[361870600,1747859349492,-500.0,0.00021999,2]
[361870601,1747859349515,-500.0,0.00021999,2]
[361870602,1747859349538,-500.0,0.00021999,2]
[361870603,1747859349561,-500.0,0.00021999,2]
[361870604,1747859349583,-500.0,0.00021999,2]
[361870605,1747859349604,-500.0,0.00021999,2]
[361870606,1747859349627,-500.0,0.00021999,2]
[361870607,1747859349652,-500.0,0.00021999,2]
[361870608,1747859349674,-500.0,0.00021999,2]
[361870609,1747859349699,-500.0,0.00021999,2]
[361870610,1747859349721,-500.0,0.00021999,2]
[361870611,1747859349745,-177.66951966,0.00021999,2]
[361870612,1747859349768,-500.0,0.00021999,2]
[361870613,1747859349795,-500.0,0.00021999,2]
[361870614,1747859349819,-500.0,0.00021999,2]
[361870615,1747859349843,-500.0,0.00021999,2]
[361870616,1747859349865,-500.0,0.00021999,2]
[361870617,1747859349891,-500.0,0.00021999,2]
[361870618,1747859349917,-500.0,0.00021999,2]
[361870619,1747859349939,-178.02622322,0.00021999,2]
[361870620,1747859349962,-500.0,0.00021999,2]
[361870621,1747859349984,-500.0,0.00021999,2]
[361870622,1747859350007,-500.0,0.00021999,2]
[361870623,1747859350031,-500.0,0.00021999,2]
[361870624,1747859350053,-500.0,0.00021999,2]
[361870625,1747859350076,-500.0,0.00021999,2]
[361870626,1747859350098,-500.0,0.00021999,2]
[361870627,1747859350122,-500.0,0.00021999,2]
[361870628,1747859350144,-500.0,0.00021999,2]
[361870629,1747859350166,-500.0,0.00021999,2]
[361870630,1747859350187,-500.0,0.00021999,2]
[361870631,1747859350209,-500.0,0.00021999,2]
[361870632,1747859350231,-500.0,0.00021999,2]
[361870633,1747859350253,-500.0,0.00021999,2]
[361870634,1747859350275,-600.91635608,0.00021999,2]
[361870635,1747859350297,-500.0,0.00021999,2]
[361870636,1747859350317,-40822.0,0.00022,30]
[361870637,1747859350338,-164.0,0.00022,2]
[361870638,1747859350358,-422.71322487,0.00022084,2]
[361870639,1747859350378,-160.0,0.00022084,2]
[361870640,1747859350407,-2102.7778143,0.00022107,6]
[361870641,1747859350426,-500.0,0.00022191,2]
[361870642,1747859350446,-420.0,0.00022191,2]
[361870643,1747859350469,-370.0,0.00022191,2]
[361870644,1747859350491,-430.0,0.00022191,2]
[361870645,1747859350514,-430.0,0.00022191,2]
[361870646,1747859350539,-430.0,0.00022191,2]
[361870647,1747859350566,-430.0,0.00022191,2]
[361870648,1747859350589,-400.0,0.00022191,2]
[361870649,1747859350611,-430.0,0.00022191,2]
[361870650,1747859350639,-553.96,0.00022191,2]
[361870651,1747859350661,-430.0,0.00022191,2]
[361870652,1747859350683,-430.0,0.00022191,2]
[361870653,1747859350705,-430.0,0.00022191,2]
[361870654,1747859350726,-430.0,0.00022191,2]
[361870655,1747859350748,-430.0,0.00022191,2]
[361870656,1747859350770,-539.39,0.00022191,2]
[361870657,1747859350792,-360.0,0.00022191,2]
[361870658,1747859350813,-510.58168938,0.00022191,2]
[361870659,1747859350834,-430.0,0.00022191,2]
[361870660,1747859350855,-430.0,0.00022191,2]
[361870661,1747859350877,-430.0,0.00022191,2]
[361870662,1747859350899,-567.11,0.00022191,2]
[361870663,1747859350921,-536.01,0.00022191,2]
[361870664,1747859350943,-159.49000628,0.00022191,2]
[361870665,1747859350964,-430.0,0.00022191,2]
[361870666,1747859350985,-430.0,0.00022191,2]
[361870667,1747859351006,-430.0,0.00022191,2]
[361870668,1747859351027,-430.0,0.00022191,2]
[361870669,1747859351048,-430.0,0.00022191,2]
[361870670,1747859351069,-430.0,0.00022191,2]
[361870671,1747859351090,-430.0,0.00022191,2]
[361870672,1747859351111,-430.0,0.00022191,2]
[361870673,1747859351132,-430.0,0.00022191,2]
[361870674,1747859351153,-420.0,0.00022191,2]
[361870675,1747859351173,-315.0498901,0.00022212,2]
[361870676,1747859351194,-801.7557559,0.00022213,2]
[361870677,1747859351219,-2102.7778143,0.00022279,6]
[361870678,1747859351239,-219.46690057,0.00022309,2]
[361870679,1747859351260,-430.0,0.00022309,2]
[361870680,1747859351282,-430.0,0.00022309,2]
[361870681,1747859351303,-430.0,0.00022309,2]
[361870682,1747859351325,-500.0,0.00022309,2]
[361870683,1747859351346,-601.99376526,0.00022309,2]
[361870684,1747859351368,-500.0,0.00022309,2]
[361870685,1747859351389,-500.0,0.00022309,2]
[361870686,1747859351409,-281.11834181,0.00022309,2]
[361870687,1747859351431,-500.0,0.00022309,2]
[361870688,1747859351451,-500.0,0.00022309,2]
[361870689,1747859351477,-400.0,0.0002231,2]
[361870690,1747859351497,-430.0,0.0002231,2]
[361870691,1747859351518,-430.0,0.0002231,2]
[361870692,1747859351540,-390.0,0.0002231,2]
[361870693,1747859351563,-430.0,0.0002231,2]
[361870694,1747859351584,-430.0,0.0002231,2]
[361870695,1747859351605,-400.8738898,0.0002231,2]
[361870696,1747859351626,-430.0,0.0002231,2]
[361870697,1747859351648,-430.0,0.0002231,2]
[361870698,1747859351669,-430.0,0.0002231,2]
[361870699,1747859351689,-430.0,0.0002231,2]
[361870700,1747859351710,-430.0,0.0002231,2]
[361870701,1747859351732,-430.0,0.0002231,2]
[361870702,1747859351754,-430.0,0.0002231,2]
[361870703,1747859351775,-500.0,0.0002231,2]
[361870704,1747859351798,-430.0,0.0002231,2]
[361870705,1747859351819,-430.0,0.0002231,2]
[361870706,1747859351840,-430.0,0.0002231,2]
[361870707,1747859351861,-450.0,0.0002231,2]
[361870708,1747859351882,-430.0,0.0002231,2]
[361870709,1747859351903,-430.0,0.0002231,2]
[361870710,1747859351924,-430.0,0.0002231,2]
[361870711,1747859352061,-430.0,0.0002231,2]
[361870712,1747859352083,-430.0,0.0002231,2]
[361870713,1747859352104,-430.0,0.0002231,2]
[361870714,1747859352126,-430.0,0.0002231,2]
[361870715,1747859352147,-450.0,0.0002231,2]
[361870716,1747859352168,-430.0,0.0002231,2]
[361870717,1747859352188,-430.0,0.0002231,2]
[361870718,1747859352210,-430.0,0.0002231,2]
[361870719,1747859352232,-500.0,0.0002231,2]
[361870720,1747859352254,-430.0,0.0002231,2]
[361870721,1747859352276,-430.0,0.0002231,2]
[361870722,1747859352298,-430.0,0.0002231,2]
[361870723,1747859352320,-503.64658502,0.0002231,2]
[361870724,1747859352341,-430.0,0.0002231,2]
[361870725,1747859352362,-350.0,0.0002231,2]
[361870726,1747859352383,-430.0,0.0002231,2]
[361870727,1747859352404,-430.0,0.0002231,2]
[361870728,1747859352426,-504.75,0.0002231,2]
[361870729,1747859352448,-504.75,0.0002231,2]
[361870730,1747859352472,-430.0,0.0002231,2]
[361870731,1747859352495,-430.0,0.0002231,2]
[361870732,1747859352517,-430.0,0.0002231,2]
[361870733,1747859352540,-430.0,0.0002231,2]
[361870734,1747859352564,-403.0591896,0.0002231,2]
[361870735,1747859352585,-400.0,0.0002231,2]
[361870736,1747859352607,-430.0,0.0002231,2]
[361870737,1747859352628,-430.0,0.0002231,2]
[361870738,1747859352649,-430.0,0.0002231,2]
[361870739,1747859352670,-430.0,0.0002231,2]
[361870740,1747859352692,-430.0,0.0002231,2]
[361870741,1747859352714,-430.0,0.0002231,2]
[361870742,1747859352737,-430.0,0.0002231,2]
[361870743,1747859352759,-430.0,0.0002231,2]
[361870744,1747859352781,-430.0,0.0002231,2]
[361870745,1747859352803,-430.0,0.0002231,2]
[361870746,1747859352825,-430.0,0.0002231,2]
[361870747,1747859352848,-430.0,0.0002231,2]
[361870748,1747859352869,-430.0,0.0002231,2]
[361870749,1747859352891,-430.0,0.0002231,2]
[361870750,1747859352912,-430.0,0.0002231,2]
[361870751,1747859352934,-450.0,0.0002231,2]
[361870752,1747859352955,-430.0,0.0002231,2]
[361870753,1747859352977,-430.0,0.0002231,2]
[361870754,1747859352998,-430.0,0.0002231,2]
[361870755,1747859353019,-430.0,0.0002231,2]
[361870756,1747859353042,-430.0,0.0002231,2]
[361870757,1747859353065,-430.0,0.0002231,2]
[361870758,1747859353089,-430.0,0.0002231,2]
[361870759,1747859353111,-256.8820146,0.0002231,2]
[361870760,1747859353133,-430.0,0.0002231,2]
[361870761,1747859353155,-430.0,0.0002231,2]
[361870762,1747859353176,-430.0,0.0002231,2]
[361870763,1747859353197,-430.0,0.0002231,2]
[361870764,1747859353218,-430.0,0.0002231,2]
[361870765,1747859353240,-402.47465961,0.0002231,2]
[361870766,1747859353262,-430.0,0.0002231,2]
[361870767,1747859353283,-430.0,0.0002231,2]
[361870768,1747859353304,-430.0,0.0002231,2]
[361870769,1747859353325,-430.0,0.0002231,2]
[361870770,1747859353346,-430.0,0.0002231,2]
[361870771,1747859353368,-430.0,0.0002231,2]
[361870772,1747859353390,-430.0,0.0002231,2]
[361870773,1747859353411,-430.0,0.0002231,2]
[361870774,1747859353432,-430.0,0.0002231,2]
[361870775,1747859353453,-430.0,0.0002231,2]
[361870776,1747859353476,-430.0,0.0002231,2]
[361870777,1747859353498,-520.8,0.0002231,2]
[361870778,1747859353520,-430.0,0.0002231,2]
[361870779,1747859353542,-500.0,0.0002231,2]
[361870780,1747859353562,-430.0,0.0002231,2]
[361870781,1747859353583,-430.0,0.0002231,2]
[361870782,1747859353605,-430.0,0.0002231,2]
[361870783,1747859353627,-430.0,0.0002231,2]
[361870784,1747859353648,-500.0,0.0002231,2]
[361870785,1747859353670,-430.0,0.0002231,2]
[361870786,1747859353691,-430.0,0.0002231,2]
[361870787,1747859353712,-430.0,0.0002231,2]
[361870788,1747859353732,-430.0,0.0002231,2]
[361870789,1747859353754,-157.61313786,0.0002231,2]
[361870790,1747859353775,-430.0,0.0002231,2]
[361870791,1747859353796,-430.0,0.0002231,2]
[361870792,1747859353816,-430.0,0.0002231,2]
[361870793,1747859353837,-430.0,0.00022311,2]
[361870794,1747859353860,-430.0,0.00022311,2]
[361870795,1747859353881,-430.0,0.00022311,2]
[361870796,1747859353902,-450.0,0.00022311,2]
[361870797,1747859353923,-430.0,0.00022311,2]
[361870798,1747859353944,-450.0,0.00022311,2]
[361870799,1747859353964,-430.0,0.00022311,2]
[361870800,1747859353984,-430.0,0.00022311,2]
[361870801,1747859354005,-350.0,0.00022311,2]
[361870802,1747859354025,-401.46806045,0.00022311,2]
[361870803,1747859354044,-450.0,0.00022311,2]
[361870804,1747859354064,-430.0,0.00022311,2]
[361870805,1747859354084,-450.0,0.00022311,2]
[361870806,1747859354104,-450.0,0.00022311,2]
[361870807,1747859354124,-430.0,0.00022311,2]
[361870808,1747859354144,-450.0,0.00022311,2]
[361870809,1747859354164,-500.84550072,0.00022311,2]
[361870810,1747859354184,-430.0,0.00022311,2]
[361870811,1747859354205,-430.0,0.00022311,2]
[361870812,1747859354225,-350.0,0.00022311,2]
[361870813,1747859354246,-350.0,0.00022311,2]
[361870814,1747859354266,-430.0,0.00022311,2]
[361870815,1747859354288,-430.0,0.00022311,2]
[361870816,1747859354308,-430.0,0.00022311,2]
[361870817,1747859354329,-430.0,0.00022311,2]
[361870818,1747859354349,-430.0,0.00022311,2]
[361870819,1747859354370,-430.0,0.00022311,2]
[361870820,1747859354392,-430.0,0.00022311,2]
[361870821,1747859354412,-419.34525243,0.00022311,2]
[361870822,1747859354433,-430.0,0.00022311,2]
[361870823,1747859354453,-430.0,0.00022311,2]
[361870824,1747859354476,-430.0,0.00022311,2]
[361870825,1747859354497,-300.0,0.00022311,2]
[361870826,1747859354519,-430.0,0.00022311,2]
[361870827,1747859354542,-430.0,0.00022311,2]
[361870828,1747859354565,-430.0,0.00022311,2]
[361870829,1747859354712,-180.61793824,0.00022311,2]
[361870830,1747859354742,-430.0,0.00022311,2]
[361870831,1747859354765,-430.0,0.00022311,2]
[361870832,1747859354789,-350.0,0.00022311,2]
[361870833,1747859354811,-350.0,0.00022311,2]
[361870834,1747859354833,-430.0,0.00022311,2]